Cogmind - Beta 13 *** ADVENTURER MODE // 2024.04.01 @ 03:41:34 // Winter2019/RPGLIKE Player: Big Tortoise Result: Destroyed self with Sigix Terminator Performance ------------- Evolutions (8) 4000 Regions Visited (22) 4400 Robots Destroyed (452) 2260 Value Destroyed (26247) 26247 Prototype IDs (50) 1000 Alien Tech Used (7) 1400 Bonus (16786) 16786 TOTAL SCORE: 56093 Bonus ------- High Alert Combat Kills 5534 Follower Combat Kills 1721 Network Hubs Disabled 400 Met Zhirov 300 Met R17 at Cetus 500 Found Hidden Lab 3000 Used Core Reset Matrix 3000 Scanned by Researcher 500 Pursued by Intercept 1000 Met Sigix 2000 Friendly Fire -1169 Cogmind --------- Core Integrity 0/1100 Matter 307/450 Energy 1015/1243 System Corruption 7% Temperature Cool (0) Movement Core (850) Ox16 Location -2/Quarantine Parts ------- > --- POWER (3) -------- Quantum-Particle Reactor > --- PROPULSION (6) --- Flying QT Exoskeleton > --- UTILITY (11) ----- Armored Scrap Engine Advanced Cooling System Improved Signal Interpreter AEGIS Remote Shield Deep Network Scanner Experimental System Shield LC Capacitor > --- WEAPON (5) ------- Hvy. Laser Linear Construct/C > --- INVENTORY (5) ---- Sigix Containment Pod Peak State ------------ > --- POWER ------------ Quantum-Particle Reactor > --- PROPULSION ------- Flying QT Exoskeleton > --- UTILITY ---------- Armored Scrap Engine Improved Signal Interpreter Long-range Terrain Scanner AEGIS Remote Shield Deep Network Scanner Experimental System Shield Advanced Component Analysis Suite LC Capacitor > --- WEAPON ----------- Hvy. Laser Linear Construct/C Hyp. KE Hardcell Construct/G Hpw. Thermic Linear Construct/G > --- INVENTORY -------- Experimental Melee Analysis Suite Advanced System Restoration Module Transdimensional Reconstructor Linear Accelerator [Rating: 230] Favorites ----------- Power Constructs Engine Light Angular Momentum Engine Reactor Constructs Propulsion Constructs Leg Aluminum Leg Wheel Subdweller Monowheel Flight Unit Constructs Utility Armored Scrap Engine Device Armored Scrap Engine Storage Advanced Energy Well Processor Improved Signal Interpreter Hackware Experimental System Shield Protection Advanced Powered Armor Artifact LC Capacitor Weapon Constructs Energy Gun Constructs Energy Cannon Cooled Particle Cannon Ballistic Gun Constructs Ballistic Cannon Constructs Launcher Heavy Rocket Launcher Special Weapon Mining Laser Build | -11 -10 -10 -7 -5 -5 -5 -5 -5 -5 -4 -4 -4 -4 -4 -4 -4 -4 -3 -3 -3 -2 -2 ------- Run | Yrd Mat Sub Rec Fac Was Fac Upp Upp Zhi Pro Fac Was Fac Ext Cet Arc Hub Res Arm Lab Res Qua Slots Evolved 21 | 3 . 1 5 6 . . 2 . . . 1 . 1 . . . . . 1 . 1 . Power 2 | . . . 1 . . . 1 . . . . . . . . . . . . . . . Propulsion 5 | 1 . . 1 1 . . 1 . . . 1 . . . . . . . . . . . Utility 10 | 1 . 1 2 4 . . . . . . . . . . . . . . 1 . 1 . Weapon 4 | 1 . . 1 1 . . . . . . . . 1 . . . . . . . . . Parts Attached 176 | 5 7 8 4 25 4 9 2 . 3 . 4 6 5 5 . . 10 15 18 6 26 14 Power 2 | 1 . 1 . . . . . . . . . . . . . . . . . . . . Engine 2 | 1 . 1 . . . . . . . . . . . . . . . . . . . . Core . | . . . . . . . . . . . . . . . . . . . . . . . Reactor . | . . . . . . . . . . . . . . . . . . . . . . . Propulsion 4 | 2 . 2 . . . . . . . . . . . . . . . . . . . . Treads . | . . . . . . . . . . . . . . . . . . . . . . . Leg 3 | 2 . 1 . . . . . . . . . . . . . . . . . . . . Wheel 1 | . . 1 . . . . . . . . . . . . . . . . . . . . Hover . | . . . . . . . . . . . . . . . . . . . . . . . Flight . | . . . . . . . . . . . . . . . . . . . . . . . Utility 150 | . 3 2 3 16 4 9 2 . 3 . 4 6 5 5 . . 10 15 18 6 26 13 Device 113 | . 2 1 3 13 4 6 1 . 2 . 3 5 3 3 . . 9 10 9 4 23 12 Storage 5 | . . . . 1 . . . . 1 . . . 1 . . . . . 1 . 1 . Processor 13 | . 1 . . 2 . 3 1 . . . 1 . . . . . . 4 . . 1 . Hackware 14 | . . . . . . . . . . . . 1 1 1 . . 1 1 6 1 1 1 Protection 4 | . . 1 . . . . . . . . . . . 1 . . . . 2 . . . Artifact 1 | . . . . . . . . . . . . . . . . . . . . 1 . . Weapon 20 | 2 4 3 1 9 . . . . . . . . . . . . . . . . . 1 Energy Gun 3 | 1 1 . . 1 . . . . . . . . . . . . . . . . . . Energy Cannon 2 | . . . . 2 . . . . . . . . . . . . . . . . . . Ballistic Gun 3 | 1 . 1 1 . . . . . . . . . . . . . . . . . . . Ballistic Cannon 6 | . 2 2 . 2 . . . . . . . . . . . . . . . . . . Launcher 5 | . . . . 4 . . . . . . . . . . . . . . . . . 1 Special Weapon 1 | . 1 . . . . . . . . . . . . . . . . . . . . . Impact Weapon . | . . . . . . . . . . . . . . . . . . . . . . . Slashing Weapon . | . . . . . . . . . . . . . . . . . . . . . . . Piercing Weapon . | . . . . . . . . . . . . . . . . . . . . . . . Special Melee Weapon . | . . . . . . . . . . . . . . . . . . . . . . . Unidentified Prototypes 24 | . 1 . . 6 . 1 . . 2 . . 1 1 . . . 1 4 1 6 . . Parts Lost 4 | . . . . 1 2 . . . . . . 1 . . . . . . . . . . Power . | . . . . . . . . . . . . . . . . . . . . . . . Propulsion . | . . . . . . . . . . . . . . . . . . . . . . . Utility 4 | . . . . 1 2 . . . . . . 1 . . . . . . . . . . Weapon . | . . . . . . . . . . . . . . . . . . . . . . . Highest Loss Streak 2 | . . . . 1 2 . . . . . . 1 . . . . . . . . . . To Critical Strikes . | . . . . . . . . . . . . . . . . . . . . . . . Average Slot Usage (%) 62 | . 95 87 68 67 65 66 66 59 57 57 52 47 53 56 56 56 56 55 56 54 51 51 Engine 2 | . 14 12 7 4 2 . . . . . . . . . 3 . . . . . . . Core 1 | . . . . . 2 5 4 4 4 4 4 2 . 1 . . 2 1 . . . . Reactor 1 | . . . . . . . . . . . . 1 4 2 . 4 1 2 4 4 4 4 Leg 4 | . 28 25 5 1 . . 4 3 4 4 4 2 . 4 4 4 2 2 . . . . Device 20 | . 15 12 27 31 34 30 25 23 22 23 20 14 14 16 17 17 16 14 14 15 14 15 Processor 8 | . 9 12 . 3 5 9 14 14 14 14 13 13 13 9 8 8 8 10 10 7 4 4 Hackware 3 | . . . . . . . . . . . . 1 4 5 8 8 8 8 8 8 8 8 Energy Gun 4 | . 14 12 7 7 5 2 . . . . . . . . . 6 6 4 4 1 . 2 Energy Cannon 2 | . . . . 2 5 5 1 . . 2 1 2 4 4 3 . 1 5 2 4 4 1 Ballistic Gun 2 | . 4 6 4 4 . 2 4 3 4 1 . . . 1 4 . . . . 4 4 4 Ballistic Cannon 5 | . 7 5 7 4 5 5 8 7 4 4 6 6 5 6 4 5 4 2 5 2 4 4 Naked Turns . | . . . . . . . . . . . . . . . . . . . . . . . Heaviest Build 150 | 8 12 16 27 62 61 64 65 83 80 80 82 88 88 132 129 113 110 92 143 138 141 150 Greatest Support 224 | 25 25 25 61 55 27 47 47 47 47 47 47 186 186 191 161 183 183 224 224 221 179 179 Greatest Overweight (x) 18 | . . 1 1 2 2 2 1 1 1 1 1 1 . 1 . . . . . . 17 18 Average Overweight (x) . | . . . . . 1 1 1 1 1 1 1 . . . . . . . . . . . Largest Inventory Capacity 5 | 1 1 1 3 5 5 5 5 5 5 5 5 5 5 5 5 5 5 5 5 5 5 5 Average Capacity 4 | 1 1 1 2 4 5 5 5 5 5 5 5 5 5 5 5 5 5 5 5 5 5 5 Most Carried 5 | . 1 1 3 5 5 5 4 4 5 5 5 5 5 5 5 5 5 5 5 5 5 5 Average Carried 3 | . . . 2 3 5 3 3 3 4 5 4 3 3 5 5 5 4 4 3 2 3 4 Final Capacity 5 | 1 1 1 3 5 5 5 5 5 5 5 5 5 5 5 5 5 5 5 5 5 5 5 Final Carried 5 | . 1 1 3 5 5 3 4 4 5 5 4 2 5 5 5 5 4 4 2 4 5 2 Scrap Engine Consumption 395 | . . . 33 117 5 16 6 14 . 6 2 11 42 12 14 5 20 24 45 3 8 12 Constructs Created 6 | . . . 1 4 . . . . . . . . 1 . . . . . . . . . Constructs Modified 164 | . . . 4 49 4 9 3 7 . 2 1 7 4 14 3 5 9 13 14 7 4 5 Class Distribution -------------------- 51% | Hacker-Construct 25% | Wizard-Construct 12% | Hacker-Mutant 5% | Hacker-Tank 4% | Hacker-Gunner Dominant Class ---------------- Hacker-Mutant | -10/Materials Hacker-Mutant | -10/Subcaves Hacker-Tank | -7/Recycling Hacker-Construct | -5/Factory Hacker-Construct | -5/Waste Hacker-Construct | -5/Factory Hacker-Construct | -5/Upper Caves Hacker-Construct | -5/Upper Caves Hacker-Construct | -5/Zhirov Hacker-Construct | -4/Proximity Caves Hacker-Construct | -4/Factory Hacker-Construct | -4/Waste Hacker-Construct | -4/Factory Hacker-Construct | -4/Extension Hacker-Construct | -4/Cetus Hacker-Construct | -4/Archives Wizard-Construct | -4/Hub_04(d) Wizard-Construct | -3/Research Wizard-Construct | -3/Armory Wizard-Construct | -3/Lab Wizard-Construct | -2/Research Wizard-Construct | -2/Quarantine Resources | -11 -10 -10 -7 -5 -5 -5 -5 -5 -5 -4 -4 -4 -4 -4 -4 -4 -4 -3 -3 -3 -2 -2 ----------- Run | Yrd Mat Sub Rec Fac Was Fac Upp Upp Zhi Pro Fac Was Fac Ext Cet Arc Hub Res Arm Lab Res Qua Matter Collected 6562 | 239 253 256 318 1687 . 138 58 . . 47 40 30 291 532 72 64 815 558 314 158 382 310 Remotely . | . . . . . . . . . . . . . . . . . . . . . . . Salvage Created 23517 | . 502 273 799 3464 . 376 437 474 . 766 35 462 2250 2134 725 382 3233 1769 3450 100 1219 667 Parts 1074 | . 17 15 24 154 . 31 15 20 . 25 5 3 111 68 31 12 142 91 202 1 76 31 Haulers Intercepted 13 | . 2 . . 3 . . . . . . . . 2 . . . 5 1 . . . . Recyclers Shooed 7 | . . . 2 2 . . . . . . . . 2 . . . . . . . 1 . Parts Field Recycled . | . . . . . . . . . . . . . . . . . . . . . . . Retrieved Matter . | . . . . . . . . . . . . . . . . . . . . . . . Parts Self-Destructed 44 | . . 15 . . . . 2 4 . 23 . . . . . . . . . . . . Prevented 14 | . . . . . . . 3 10 . 1 . . . . . . . . . . . . Kills | -11 -10 -10 -7 -5 -5 -5 -5 -5 -5 -4 -4 -4 -4 -4 -4 -4 -4 -3 -3 -3 -2 -2 ------- Run | Yrd Mat Sub Rec Fac Was Fac Upp Upp Zhi Pro Fac Was Fac Ext Cet Arc Hub Res Arm Lab Res Qua Combat Hostiles Destroyed 372 | . 11 8 3 65 . 7 6 10 . 12 3 2 33 35 12 4 42 24 53 1 22 19 Guns 67 | . 9 6 2 24 . 1 . . . 5 . . . 3 . . 8 3 2 . 2 2 Cannons 272 | . 2 2 1 26 . 6 5 8 . 6 3 2 33 31 11 4 32 17 51 1 20 11 AOE 21 | . . . . 11 . . . . . . . . . . 1 . 2 1 . . . 6 Classes Destroyed 28 | . 4 3 1 10 . . 1 1 . 1 . 1 2 1 . . . . 2 . . 1 Worker 11 | . . . . 2 . . . . . . . . . . . . 8 . . . 1 . Builder 7 | . . . . 2 . 1 . . . . . . 2 . . . 2 . . . . . Tunneler 4 | . . . . 2 . . . . . . . . . . . . 1 . . . 1 . Hauler 13 | . 2 . . 3 . . . . . . . . 2 . . . 5 1 . . . . Recycler 17 | . 1 . 8 2 . 1 . . . . . . 1 1 . . . 1 . . 2 . Carrier 1 | . . . . . . . . . . . . . 1 . . . . . . . . . Mechanic 3 | . . . . 1 . . . . . . . . 2 . . . . . . . . . Operator 13 | . . . . 2 . 1 . . . . . . 2 1 . . 3 1 2 . . 1 Drone 2 | . . . . . . . . . . 1 . . . . . . . . . . . 1 Turret 2 | . . 2 . . . . . . . . . . . . . . . . . . . . Watcher 21 | . 1 . . 4 . 1 . . . . . . 2 1 2 . 4 4 1 . 1 . Swarmer 53 | . . 6 . 1 . . . 6 . 4 3 . 5 . 3 . . . 6 . 14 5 Grunt 131 | . 11 . . 29 . 5 . 2 . . . . 19 22 . . 21 9 11 1 1 . Brawler 6 | . . . . 1 . . . . . . . . . 4 . . . 1 . . . . Duelist 6 | . . . . 1 . . . . . . . . . . . . 1 . 4 . . . Protector 4 | . . . . . . . . . . . . . . 1 . . 2 . 1 . . . Sentry 34 | . . . 3 6 . 2 . 1 . . . . 2 2 . 4 6 1 6 . 1 . Demolisher 2 | . . . . . . . . . . . . . . . . . . . 2 . . . Specialist 3 | . . . . . . . . . . . . . . . . . . . 3 . . . Hunter 50 | . . . . 10 . . 2 . . 4 . . 1 4 2 . 6 8 8 1 2 2 Programmer 39 | . . . . 8 . . . . . 2 . . 5 . . . 5 4 13 . 2 . Heavy 3 | . . . . . . . . . . . . . 1 . . . 1 1 . . . . Behemoth 4 | . . . . . . . . 1 . 1 . . . 2 . . . . . . . . Compactor 2 | . . . . . . . . . . . . 2 . . . . . . . . . . Cetus Guard 7 | . . . . . . . . . . . . . . . 7 . . . . . . . Quarantine Guard 5 | . . . . . . . . . . . . . . . . . . . . . . 5 Lightning 2 | . . . . . . . . . . . . . . . . . . . . . . 2 Tracker 3 | . . . . . . . . . . . . . . . . . . . . . 2 1 Combat Programmer 2 | . . . . . . . . . . . . . . . . . . . . . . 2 Alpha 7 1 | . . . . . . . . . . . . . . . . . . . . . . 1 Subdweller 2 | . . 2 . . . . . . . . . . . . . . . . . . . . Assembled 9 | . . . . 9 . . . . . . . . . . . . . . . . . . Thug 3 | . . . . . . . 1 . . . . . . 1 1 . . . . . . . Fireman 3 | . . . . . . . 3 . . . . . . . . . . . . . . . Best Kill Streak 15 | . 6 5 6 9 . 6 4 8 . 4 3 2 9 15 5 4 14 7 10 1 6 10 Combat Bots Only 14 | . 4 3 1 9 . 3 4 8 . 4 3 2 7 14 5 4 8 5 10 1 6 10 Max Kills in Single Turn 6 | . 1 1 1 6 . 2 1 1 . 1 1 1 2 2 1 1 3 1 2 1 1 6 Gunslinging . | . . . . . . . . . . . . . . . . . . . . . . . Exploded 6 | . . . . 6 . . . . . . . . . . 1 . 2 1 . . . 6 Melee . | . . . . . . . . . . . . . . . . . . . . . . . Uniques/NPCs Destroyed 1 | . . . . . . . . . . . . . . . . . . . . 1 . . A5 (-3/Lab) Combat | -11 -10 -10 -7 -5 -5 -5 -5 -5 -5 -4 -4 -4 -4 -4 -4 -4 -4 -3 -3 -3 -2 -2 -------- Run | Yrd Mat Sub Rec Fac Was Fac Upp Upp Zhi Pro Fac Was Fac Ext Cet Arc Hub Res Arm Lab Res Qua Hostile Shots Fired 1840 | . 47 88 63 339 5 15 16 31 . 86 8 20 129 230 74 20 144 130 102 . 110 183 Missed 590 | . 17 25 31 94 1 3 3 10 . 34 3 1 52 81 25 6 52 59 26 . 30 37 Damage Taken 12314 | . 272 436 33 2750 96 135 66 184 . 358 32 627 858 1006 250 108 1635 660 913 14 680 1201 Core 9551 | . 224 347 21 2136 75 105 53 148 . 276 22 502 671 750 188 80 1318 518 691 10 511 905 Absorbed by Shields 5542 | . . . 119 742 7 . 26 33 . 144 14 43 . 1084 273 112 287 260 863 13 456 1066 Reduced by Siege Mode 15 | . . . . . . . . . . . . . . . . . . . 15 . . . Redirected to Core 8384 | . 147 278 19 1822 75 93 44 107 . 247 22 435 633 706 157 80 1088 465 663 10 471 822 Ignored by Resistances 11200 | . 102 221 93 2086 84 106 65 156 . 354 35 431 634 1638 465 171 873 564 889 18 646 1569 Regen/Repaired (Parts) 957 | . . . 3 224 4 61 3 3 . 16 5 122 53 63 1 . 19 273 9 21 37 40 Core Remaining (%) 79 | 100 . . 100 . . . . . . 79 . . . . . . 17 . . 100 . . Volleys Fired 925 | . 74 52 32 203 . 18 10 12 . 33 3 15 59 51 27 8 88 56 87 11 42 44 Largest 4 | . 2 2 3 4 . 3 3 3 . 2 2 2 3 3 3 3 3 3 3 3 3 3 Hottest 237 | . 100 156 119 231 . 231 180 180 . 221 221 221 237 237 237 237 237 237 192 197 197 197 Shots Fired 2425 | . 126 96 89 626 . 47 30 36 . 52 6 30 149 153 51 24 258 160 240 33 106 113 Gun 1071 | . 101 61 57 380 . 11 10 12 . 25 . . . 17 15 8 140 54 68 11 37 64 Cannon 1341 | . 23 31 32 240 . 36 20 24 . 27 6 30 149 136 36 16 118 106 172 22 69 48 Launcher 7 | . . . . 6 . . . . . . . . . . . . . . . . . 1 Special 6 | . 2 4 . . . . . . . . . . . . . . . . . . . . Kinetic 1308 | . 53 44 57 373 . 22 12 15 . 47 6 30 90 102 24 16 148 22 121 22 64 40 Thermal 972 | . 73 52 32 233 . 18 10 9 . 5 . . 59 34 20 8 88 86 119 11 42 73 Explosive 6 | . . . . 6 . . . . . . . . . . . . . . . . . . Electromagnetic 139 | . . . . 14 . 7 8 12 . . . . . 17 7 . 22 52 . . . . Robot Hit Streak 65 | . 25 21 39 59 . 34 21 40 . 23 6 18 25 65 33 34 58 29 28 13 17 19 Robot Miss Streak 3 | . 1 3 1 2 . 2 . 1 . 3 . 1 2 1 2 . 2 1 3 1 2 2 Penetration Max 3 | . . . . 1 . . . . . . . . 2 1 1 . 1 . 1 3 1 1 Secondary Targets 1 | . . 1 . . . . . . . . . . . . . . . . . . . . Max Gunslinging Chain 1 | . . 1 . . . . . . . . . . . . . . . . . . . . Shots Hit Robots 1523 | . 76 46 60 426 . 27 17 20 . 42 4 25 105 102 35 16 152 98 138 12 53 69 Core Hits 688 | . 28 14 19 204 . 15 6 9 . 12 1 2 52 47 20 6 77 31 68 13 28 36 Critical Kills 48 | . . . . 4 . 2 2 1 . 1 . . 16 8 . 1 7 1 1 . 3 1 Critical Parts Destroyed 70 | . . . . 2 . 3 2 1 . 1 . 2 11 14 5 1 14 6 5 . 2 1 Critical Strikes 175 | . 6 4 2 20 . 5 4 4 . 6 . 8 29 24 5 5 25 12 9 . 5 2 Burn 23 | . 5 3 2 7 . . . . . . . . . . . . . 3 3 . . . Meltdown 1 | . . . . . . . . . . 1 . . . . . . . . . . . . Destroy 133 | . . . . 8 . 5 4 4 . 1 . 8 28 23 5 4 23 7 6 . 5 2 Blast 14 | . 1 1 . 5 . . . . . 4 . . 1 1 . 1 . . . . . . Corrupt 4 | . . . . . . . . . . . . . . . . . 2 2 . . . . Melee Attacks . | . . . . . . . . . . . . . . . . . . . . . . . Impact . | . . . . . . . . . . . . . . . . . . . . . . . Slashing . | . . . . . . . . . . . . . . . . . . . . . . . Piercing . | . . . . . . . . . . . . . . . . . . . . . . . Sneak Attacks . | . . . . . . . . . . . . . . . . . . . . . . . Combat Hostiles . | . . . . . . . . . . . . . . . . . . . . . . . Follow-up Attacks . | . . . . . . . . . . . . . . . . . . . . . . . Damage Inflicted 95411 | . 1069 770 1124 10859 . 1449 771 1231 . 2678 420 2320 8165 8032 3100 1204 16074 8628 12914 999 3715 9889 Guns 16039 | . 721 503 717 4878 . 237 67 139 . 633 . . . 515 375 184 3604 757 903 247 470 1089 Cannons 69450 | . 253 219 330 4223 . 1212 704 1092 . 2045 420 2320 8158 7445 2596 1020 11522 7694 11972 752 3019 2454 Explosions 9844 | . 95 . 77 1754 . . . . . . . . . 72 129 . 929 177 39 . 226 6346 Melee . | . . . . . . . . . . . . . . . . . . . . . . . Ramming 30 | . . . . 4 . . . . . . . . 7 . . . 19 . . . . . Kinetic 44152 | . 426 373 617 4992 . 406 150 225 . 2537 420 2320 3300 2766 601 346 12878 2477 6821 693 1033 771 Thermal 42600 | . 643 397 430 4445 . 843 67 61 . 141 . . 4858 3390 1757 858 2231 4506 6093 306 2456 9118 Explosive 1547 | . . . 77 1244 . . . . . . . . . . . . . . . . 226 . Electromagnetic 7082 | . . . . 174 . 200 554 945 . . . . . 1876 742 . 946 1645 . . . . Impact . | . . . . . . . . . . . . . . . . . . . . . . . Slashing . | . . . . . . . . . . . . . . . . . . . . . . . Piercing . | . . . . . . . . . . . . . . . . . . . . . . . Highest Corruption 10 | . . . . 2 . . . . . 2 1 . 2 . . . 10 6 6 . 5 7 Average Corruption 2 | . . . . 1 . . . . . 2 1 . 1 . . . 1 2 2 . 1 5 Corruption Purged 29 | . . . . 2 . . . . . . 1 . 2 . . . 2 7 9 . 2 4 Corruption Blocked . | . . . . . . . . . . . . . . . . . . . . . . . Effects 39 | . . . . 11 . . . . . 2 . . 1 . . . 10 1 1 . 1 12 Message Errors 8 | . . . . . . . . . . . . . 1 . . . 5 . . . . 2 Matter Fused 11 | . . . . 3 . . . . . 1 . . . . . . 2 . . . 1 4 Heat Flow Errors 7 | . . . . 3 . . . . . 1 . . . . . . . . 1 . . 2 Energy Discharges 2 | . . . . . . . . . . . . . . . . . 2 . . . . . Parts Rejected 1 | . . . . . . . . . . . . . . . . . . . . . . 1 Data Loss (minor) 7 | . . . . 4 . . . . . . . . . . . . . 1 . . . 2 Data Loss (major) 1 | . . . . . . . . . . . . . . . . . 1 . . . . . Misfires 1 | . . . . 1 . . . . . . . . . . . . . . . . . . Weapon Failures 1 | . . . . . . . . . . . . . . . . . . . . . . 1 Overload Shots . | . . . . . . . . . . . . . . . . . . . . . . . Overflow Damage 8204 | . 65 . 16 183 . 63 132 52 . 247 157 . 1245 283 403 . 2626 1241 1074 . 313 104 Projectiles 7855 | . . . 16 67 . 63 132 52 . 247 157 . 1245 251 375 . 2555 1204 1074 . 313 104 Explosions 349 | . 65 . . 116 . . . . . . . . . 32 28 . 71 37 . . . . Melee . | . . . . . . . . . . . . . . . . . . . . . . . Knockbacks 149 | . 2 2 3 30 . 1 . . . 4 . . 16 14 4 . 28 6 26 3 7 3 Impact . | . . . . . . . . . . . . . . . . . . . . . . . Kinetic 136 | . 2 2 3 27 . 1 . . . 3 . . 15 12 4 . 25 6 25 2 6 3 Secondary 13 | . . . . 3 . . . . . 1 . . 1 2 . . 3 . 1 1 1 . Self-Inflicted Damage 1127 | . 15 . . 347 . . . . . . . . 3 . 31 . 158 . . . . 573 Shots 18 | . 1 . . 13 . . . . . . . . . . 1 . 2 . . . . 1 Rammed 5 | . . . . 3 . . . . . . . . 1 . . . 1 . . . . . Targets Rammed 5 | . . . . 3 . . . . . . . . 1 . . . 1 . . . . . Kicked . | . . . . . . . . . . . . . . . . . . . . . . . Crushed . | . . . . . . . . . . . . . . . . . . . . . . . Highest Temperature 505 | . 24 . . 206 . 194 100 48 . 505 64 128 106 44 72 6 22 105 377 . 26 185 Average Temperature 46 | . 6 . . 36 . 66 25 26 . 155 48 64 24 15 23 2 8 35 112 . 6 26 Received Heat Transfer 2342 | . 195 174 26 612 . 60 115 39 . 172 . . 268 262 . 28 177 72 126 . 4 12 Effects 5 | . . . . . . . . . . 3 . . . . . . . . 2 . . . Shutdowns 1 | . . . . . . . . . . 1 . . . . . . . . . . . . Interference 3 | . . . . . . . . . . 2 . . . . . . . . 1 . . . Damage (minor) 1 | . . . . . . . . . . . . . . . . . . . 1 . . . Siege Activations 3 | . . . . . . . . . . . . . . . . . . . 3 . . . Total Turns 90 | . . . . . . . . . . . . . . . . . . . 90 . . . Longest Duration 42 | . . . . . . . . . . . . . . . . . . . 42 . . . Robots Corrupted 8 | . . . . . . . 1 2 . . . . . 1 . . 1 3 . . . . Combat Hostiles 7 | . . . . . . . 1 2 . . . . . 1 . . . 3 . . . . Parts Fried 63 | . . . . . . . 5 6 . . . . . 26 4 . 8 14 . . . . Impact Corruptions 4 | . . . . . . . . . . 1 . . . . . . 2 . . . 1 . Robots Melted 5 | . . . . 4 . . . . . 1 . . . . . . . . . . . . Combat Hostiles 5 | . . . . 4 . . . . . 1 . . . . . . . . . . . . Parts Melted 38 | . 6 1 1 8 . 2 . . . 2 . . 2 . . . . 2 . . 3 11 Heat Transferred 21726 | . 2011 1062 1073 5996 . 481 111 74 . 111 . . 1739 1234 50 . 1889 1173 1197 125 1550 1850 Parts Sabotaged . | . . . . . . . . . . . . . . . . . . . . . . . Parts Stolen . | . . . . . . . . . . . . . . . . . . . . . . . Parts Stripped . | . . . . . . . . . . . . . . . . . . . . . . . Power Chain Reactions 10 | . . . . 1 . . . . . . . . . . 2 . 4 2 1 . . . Alert | -11 -10 -10 -7 -5 -5 -5 -5 -5 -5 -4 -4 -4 -4 -4 -4 -4 -4 -3 -3 -3 -2 -2 ------- Run | Yrd Mat Sub Rec Fac Was Fac Upp Upp Zhi Pro Fac Was Fac Ext Cet Arc Hub Res Arm Lab Res Qua Peak Influence 1613 | . 297 . 194 917 239 373 . . . . 450 107 1094 1115 866 343 894 597 1613 . 611 670 Initial 501 | . . . 86 100 224 135 . . . . 355 87 . 462 501 211 41 408 161 . . 282 Average 397 | . 167 . 109 434 225 232 . . . . 360 25 450 737 657 249 382 388 736 . 383 400 Maximum Alert Level 5 | . 1 . . 3 1 1 . . . . 2 . 3 4 3 1 3 2 5 . 2 2 Low Security (%) 24 | 100 47 . 100 5 . 41 . . . . . 100 24 . . 42 11 7 5 . 20 . Level 1 31 | . 52 . . 41 100 58 . . . . 89 . 7 . . 57 42 45 6 . 8 65 Level 2 33 | . . . . 39 . . . . . . 10 . 49 47 69 . 43 47 49 . 70 34 Level 3 9 | . . . . 12 . . . . . . . . 18 51 30 . 2 . 16 . . . Level 4 2 | . . . . . . . . . . . . . . 1 . . . . 20 . . . Level 5 . | . . . . . . . . . . . . . . . . . . . . . . . High Security . | . . . . . . . . . . . . . . . . . . . . . . . Max Security . | . . . . . . . . . . . . . . . . . . . . . . . Squads Dispatched 71 | . 2 . . 14 . 1 . . . . . . 10 5 . . 11 6 12 . 6 4 Investigation 11 | . 2 . . 3 . 1 . . . . . . 1 . . . 1 1 2 . . . Extermination 18 | . . . . 5 . . . . . . . . 3 . . . 3 1 5 . 1 . Reinforcement 25 | . . . . 5 . . . . . . . . 2 3 . . 6 3 3 . 2 1 Assault 11 | . . . . 1 . . . . . . . . 4 2 . . 1 1 2 . . . Garrison . | . . . . . . . . . . . . . . . . . . . . . . . Intercept 6 | . . . . . . . . . . . . . . . . . . . . . 3 3 Searches Triggered 1 | . . . . . . . . . . . 1 . . . . . . . . . . . Construction Impeded 8 | . . . . 2 . . . . . . . . 1 2 . . 1 . . . 2 . Haulers Reinforced 7 | . . . . 2 . . . . . . . . . . . . 3 2 . . . . Active Scanning Responses . | . . . . . . . . . . . . . . . . . . . . . . . Cargo Convoy Interrupts . | . . . . . . . . . . . . . . . . . . . . . . . Stealth | -11 -10 -10 -7 -5 -5 -5 -5 -5 -5 -4 -4 -4 -4 -4 -4 -4 -4 -3 -3 -3 -2 -2 --------- Run | Yrd Mat Sub Rec Fac Was Fac Upp Upp Zhi Pro Fac Was Fac Ext Cet Arc Hub Res Arm Lab Res Qua Distress Signals 31 | . 3 . . 2 . . . . . . . . 2 4 2 . 4 3 2 1 5 3 Communications Jammed . | . . . . . . . . . . . . . . . . . . . . . . . Distress Signals . | . . . . . . . . . . . . . . . . . . . . . . . Times Spotted 544 | . 14 52 3 77 5 9 6 9 . 14 4 6 55 46 16 3 59 31 71 4 29 31 Peak Tracking Total 11 | . 3 6 1 9 5 4 4 5 . 5 4 6 9 9 5 2 7 5 6 3 6 11 Tactical Retreats 25 | . 1 2 . 2 . 1 . . . . 1 . 4 3 . . 2 2 3 . . 4 Traps | -11 -10 -10 -7 -5 -5 -5 -5 -5 -5 -4 -4 -4 -4 -4 -4 -4 -4 -3 -3 -3 -2 -2 ------- Run | Yrd Mat Sub Rec Fac Was Fac Upp Upp Zhi Pro Fac Was Fac Ext Cet Arc Hub Res Arm Lab Res Qua Traps Triggered 17 | . 1 . . 7 . 2 . . . . 2 . . . . . 1 1 1 . 2 . Indirectly . | . . . . . . . . . . . . . . . . . . . . . . . Trap Hack Attempts . | . . . . . . . . . . . . . . . . . . . . . . . Triggered . | . . . . . . . . . . . . . . . . . . . . . . . Disarmed . | . . . . . . . . . . . . . . . . . . . . . . . Reprogrammed 4 | . . . . . . . . . . . . . . . . . . . . . . 4 Reused 1 | . . . . . . . . . . . . . . . . . . . . . . 1 Traps Extracted . | . . . . . . . . . . . . . . . . . . . . . . . Installed . | . . . . . . . . . . . . . . . . . . . . . . . Triggered 1 | . . . . . . . . . . . . . . . . . . . . . . 1 Objects Rigged 1 | . . . . . . . . . . . . . . . . . . 1 . . . . Machines | -11 -10 -10 -7 -5 -5 -5 -5 -5 -5 -4 -4 -4 -4 -4 -4 -4 -4 -3 -3 -3 -2 -2 ---------- Run | Yrd Mat Sub Rec Fac Was Fac Upp Upp Zhi Pro Fac Was Fac Ext Cet Arc Hub Res Arm Lab Res Qua Machines Disabled 117 | . 5 1 6 40 . 1 . . . . . . 4 6 4 . 15 . 9 3 9 14 Max in Single Turn 19 | . 1 1 1 19 . 1 . . . . . . 2 2 1 . 5 . 2 2 1 5 Garrison Access 5 | . . . . 1 . 1 . . . . . . . . . . 1 1 . . 1 . Network Hub 2 | . . . . . . . . . . . . . . . . . 2 . . . . . Energy Cycler 3 | . . . . . . . . . . . . . . 2 . . . . 1 . . . Machines Repaired . | . . . . . . . . . . . . . . . . . . . . . . . Machines Dismantled . | . . . . . . . . . . . . . . . . . . . . . . . Machines Sabotaged . | . . . . . . . . . . . . . . . . . . . . . . . Overloaded Fab Kills . | . . . . . . . . . . . . . . . . . . . . . . . Hacking | -11 -10 -10 -7 -5 -5 -5 -5 -5 -5 -4 -4 -4 -4 -4 -4 -4 -4 -3 -3 -3 -2 -2 --------- Run | Yrd Mat Sub Rec Fac Was Fac Upp Upp Zhi Pro Fac Was Fac Ext Cet Arc Hub Res Arm Lab Res Qua Machines Accessed 122 | . 9 1 10 22 . 5 1 . 7 1 3 . 2 9 3 . 11 10 10 3 3 12 Terminals 71 | . 7 . 5 11 . 1 . . . 1 1 . 2 7 3 . 10 8 5 . . 10 Fabricators 11 | . . . . 4 . . . . . . . . . . . . . 1 5 . 1 . Repair Stations 5 | . . . . 3 . 1 . . . . 1 . . . . . . . . . . . Recycling Units 13 | . 2 . 5 1 . 2 . . . . 1 . . 2 . . . . . . . . Scanalyzers 6 | . . . . 2 . . . . . . . . . . . . . 1 . . 1 2 Garrison Access 4 | . . . . 1 . 1 . . . . . . . . . . 1 . . . 1 . Total Hacks 464 | . 25 2 32 64 . 14 1 . 21 1 5 . 7 28 7 . 54 76 49 24 8 46 Successful 311 | . 11 2 23 38 . 7 1 . 21 1 5 . 2 13 6 . 36 51 30 24 7 33 Failed 153 | . 14 . 9 26 . 7 . . . . . . 5 15 1 . 18 25 19 . 1 13 Catastrophic 27 | . 5 . 1 2 . 2 . . . . . . 1 4 . . 4 2 3 . . 3 Database Lockouts . | . . . . . . . . . . . . . . . . . . . . . . . Manual 157 | . 14 . 9 32 . 1 . . . . 1 . 2 12 . . 32 20 23 . 1 10 Terminals 311 | . 20 . 18 41 . 4 . . . 1 1 . 7 23 7 . 53 71 26 . . 39 Fabricators 38 | . . . . 9 . . . . . . . . . . . . . 2 23 . 4 . Repair Stations 11 | . . . . 7 . 2 . . . . 2 . . . . . . . . . . . Recycling Units 34 | . 5 . 14 3 . 5 . . . . 2 . . 5 . . . . . . . . Scanalyzers 16 | . . . . 3 . . . . . . . . . . . . . 3 . . 3 7 Garrison Access 6 | . . . . 1 . 3 . . . . . . . . . . 1 . . . 1 . Terminal Hacks 205 | . 7 2 10 16 . 2 1 . 21 1 1 . 2 10 6 . 27 39 10 24 . 26 Record 53 | . 1 2 1 . . . . . 9 1 . . . 1 5 . 1 4 . 23 . 5 Part Schematic 14 | . . . 1 . . . . . 4 . . . 1 . . . 1 4 1 . . 2 Robot Schematic 2 | . . . 1 . . . . . . . . . . . . . . 1 . . . . Robot Analysis 14 | . 2 . . 3 . 2 . . 4 . . . . . . . 2 . 1 . . . Prototype ID Bank 8 | . 1 . . . . . . . 4 . . . . . . . 1 2 . . . . Open Door 7 | . . . . . . . 1 . . . . . . 3 1 . . . . . . 2 Open DSF 2 | . . . . 1 . . . . . . 1 . . . . . . . . . . . Level Access Points 4 | . . . . 1 . . . . . . . . . . . . 1 1 . . . 1 Branch Access Points 6 | . 1 . 1 1 . . . . . . . . 1 . . . . 1 . . . 1 Emergency Access Points 2 | . . . . . . . . . . . . . . . . . 1 1 . . . . Machine Index 4 | . . . . . . . . . . . . . . . . . 1 1 1 . . 1 Terminal Index 6 | . . . . 2 . . . . . . . . . . . . 1 1 1 . . 1 Fabricator Index 2 | . . . . 1 . . . . . . . . . . . . . 1 . . . . Recycling Unit Index 1 | . . . 1 . . . . . . . . . . . . . . . . . . . Scanalyzer Index 1 | . . . . . . . . . . . . . . . . . . 1 . . . . Alert Level 17 | . 1 . . 2 . . . . . . . . . . . . 6 3 3 . . 2 Unreport Threat 17 | . . . . 2 . . . . . . . . . 3 . . 4 4 2 . . 2 Locate Traps 4 | . . . . 1 . . . . . . . . . 1 . . . 1 . . . 1 Reprogram Traps 2 | . . . . . . . . . . . . . . . . . . . . . . 2 Dispatch Records 1 | . . . . . . . . . . . . . . . . . . . . . . 1 Maintenance Status 2 | . . . 1 . . . . . . . . . . . . . . 1 . . . . Security Status 1 | . . . . . . . . . . . . . . . . . . 1 . . . . Surveillance Status 2 | . . . . . . . . . . . . . . 1 . . 1 . . . . . Patrol Status 1 | . . . . . . . . . . . . . . . . . . 1 . . . . Transport Status 1 | . . . . . . . . . . . . . . . . . . 1 . . . . Investigation Status 1 | . . . . . . . . . . . . . . . . . 1 . . . . . Extermination Status 1 | . . . . . . . . . . . . . . . . . . 1 . . . . Recall Investigation 3 | . . . . . . . . . . . . . . . . . 2 1 . . . . Recall Extermination 3 | . . . . 1 . . . . . . . . . . . . 1 1 . . . . Recall Reinforcements 3 | . . . . . . . . . . . . . . . . . 1 1 . . . 1 Recall Assault 6 | . . . . 1 . . . . . . . . . 1 . . . 2 1 . . 1 Hauler Manifests 4 | . 1 . . . . . . . . . . . . . . . 1 1 . . . 1 Registered Components 4 | . . . 1 . . . . . . . . . . . . . 1 1 . . . 1 Registered Prototypes 3 | . . . 1 . . . . . . . . . . . . . . 1 . . . 1 Zone Layout 2 | . . . 2 . . . . . . . . . . . . . . . . . . . Release Object 1 | . . . . . . . . . . . . . . . . . . . . 1 . . Fabricator Hacks 18 | . . . . 2 . . . . . . . . . . . . . 2 12 . 2 . Network Status 3 | . . . . . . . . . . . . . . . . . . . 2 . 1 . Load Schematic 6 | . . . . 1 . . . . . . . . . . . . . 1 4 . . . Build 9 | . . . . 1 . . . . . . . . . . . . . 1 6 . 1 . Repair Station Hacks 8 | . . . . 4 . 2 . . . . 2 . . . . . . . . . . . Scan Component 4 | . . . . 2 . 1 . . . . 1 . . . . . . . . . . . Repair 4 | . . . . 2 . 1 . . . . 1 . . . . . . . . . . . Recycling Unit Hacks 16 | . 2 . 9 1 . 1 . . . . 1 . . 2 . . . . . . . . Report Inventory 2 | . 1 . 1 . . . . . . . . . . . . . . . . . . . Retrieve Components 14 | . 1 . 8 1 . 1 . . . . 1 . . 2 . . . . . . . . Scanalyzer 13 | . . . . 2 . . . . . . . . . . . . . 3 . . 3 5 Insert Component 6 | . . . . 1 . . . . . . . . . . . . . 2 . . 1 2 Analyze 7 | . . . . 1 . . . . . . . . . . . . . 1 . . 2 3 Garrison Access Hacks 4 | . . . . 1 . 1 . . . . . . . . . . 1 . . . 1 . Seal Access 4 | . . . . 1 . 1 . . . . . . . . . . 1 . . . 1 . Unauthorized Hacks 47 | . 2 . 4 12 . 1 . . . . 1 . . 1 . . 8 7 8 . 1 2 Terminals 26 | . . . 1 4 . . . . . . . . . 1 . . 8 7 3 . . 2 Track 2 | . . . . . . . . . . . . . . . . . 1 1 . . . . Botnet 20 | . . . 1 4 . . . . . . . . . 1 . . 5 4 3 . . 2 Detonate 1 | . . . . . . . . . . . . . . . . . . 1 . . . . Disrupt 1 | . . . . . . . . . . . . . . . . . 1 . . . . . Operators 2 | . . . . . . . . . . . . . . . . . 1 1 . . . . Fabricators 11 | . . . . 5 . . . . . . . . . . . . . . 5 . 1 . Report 1 | . . . . 1 . . . . . . . . . . . . . . . . . . Prioritize 3 | . . . . . . . . . . . . . . . . . . . 2 . 1 . Liberate 1 | . . . . 1 . . . . . . . . . . . . . . . . . . Fabnet 6 | . . . . 3 . . . . . . . . . . . . . . 3 . . . Repair Stations 1 | . . . . 1 . . . . . . . . . . . . . . . . . . Mechanics 1 | . . . . 1 . . . . . . . . . . . . . . . . . . Recycling Units 9 | . 2 . 3 2 . 1 . . . . 1 . . . . . . . . . . . Recyclers 3 | . . . 1 1 . . . . . . 1 . . . . . . . . . . . Mask 1 | . . . . 1 . . . . . . . . . . . . . . . . . . Tunnel 5 | . 2 . 2 . . 1 . . . . . . . . . . . . . . . . Scanalyzers . | . . . . . . . . . . . . . . . . . . . . . . . Garrison Access . | . . . . . . . . . . . . . . . . . . . . . . . Data Cores Recovered 7 | . . . . 1 . . . . . . . . 1 . . . 3 1 . . . 1 Used 4 | . . . . 1 . . . . . . . . 1 . . . 1 . . . . 1 Hacking Detections 79 | . 8 . 7 18 . 4 . . . . 2 . 2 5 2 . 8 9 7 . 1 6 Full Trace Events 4 | . . . . 2 . . . . . . . . . . . . 1 1 . . . . Feedback Events . | . . . . . . . . . . . . . . . . . . . . . . . Feedback Blocked . | . . . . . . . . . . . . . . . . . . . . . . . Robot Schematics Acquired 2 | . . . 1 . . . . . . . . . . . . . . 1 . . . . Robots Built 9 | . . . . . . . . . . . . . . . . . . . 9 . . . Authchips 2 | . . . . . . . . . . . . . . . . . . . 2 . . . Time 129 | . . . . . . . . . . . . . . . . . . . 129 . . . Total Robot Build Rating 65 | . . . . . . . . . . . . . . . . . . . 65 . . . Part Schematics Acquired 19 | . . . 1 1 . . . . 4 . . . 1 . . . 1 5 1 . 1 4 Parts Built 9 | . . . . 2 . . . . . . . . . . . . . 1 4 . 2 . Authchips 2 | . . . . . . . . . . . . . . . . . . . 2 . . . Time 332 | . . . . 106 . . . . . . . . . . . . . 46 111 . 69 . Total Part Build Rating 74 | . . . . 12 . . . . . . . . . . . . . 9 35 . 18 . Parts Repaired 4 | . . . . 2 . 1 . . . . 1 . . . . . . . . . . . Time 144 | . . . . 44 . 44 . . . . 56 . . . . . . . . . . . Parts Recycled . | . . . . . . . . . . . . . . . . . . . . . . . Recycled Matter . | . . . . . . . . . . . . . . . . . . . . . . . Retrieved Matter . | . . . . . . . . . . . . . . . . . . . . . . . Retrieved Components 28 | . 6 . 8 7 . 1 . . . . 2 . . 4 . . . . . . . . Parts Scanalyzed 4 | . . . . 1 . . . . . . . . . . . . . 1 . . . 2 Part Schematics Acquired 5 | . . . . 1 . . . . . . . . . . . . . 1 . . 1 2 Parts Damaged 1 | . . . . . . . . . . . . . . . . . . . . . . 1 Bothacking | -11 -10 -10 -7 -5 -5 -5 -5 -5 -5 -4 -4 -4 -4 -4 -4 -4 -4 -3 -3 -3 -2 -2 ------------ Run | Yrd Mat Sub Rec Fac Was Fac Upp Upp Zhi Pro Fac Was Fac Ext Cet Arc Hub Res Arm Lab Res Qua Used RIF Installer . | . . . . . . . . . . . . . . . . . . . . . . . Robots Hacked 12 | . . . . . . . . . . . . . 2 2 2 . 1 . . . 5 . Non-combat . | . . . . . . . . . . . . . . . . . . . . . . . Combat 12 | . . . . . . . . . . . . . 2 2 2 . 1 . . . 5 . Robot Hacks Applied . | . . . . . . . . . . . . . . . . . . . . . . . Relay Couplers Released 3 | . . . . . . . . . . . . . . . . . 1 2 . . . . Machine Destruction 2 | . . . . . . . . . . . . . . . . . . 2 . . . . Programmers 1 | . . . . . . . . . . . . . . . . . 1 . . . . . Fabnet Peak Effective % 9 | . . . . . . . . . . 6 6 6 6 6 6 6 6 2 2 2 9 9 Autooverrided 12 | . . . . . . . . . . . . . 2 2 2 . 1 . . . 5 . Robots Rewired 9 | . . . . . . . . . . . . . . 3 . . . . 6 . . . Allies Hacked 2 | . . . . . . . . . . . . . . . . . . . 2 . . . Hacks Repelled 2 | . . . . . . . . . . . . . . . . . . . 2 . . . Allies | -11 -10 -10 -7 -5 -5 -5 -5 -5 -5 -4 -4 -4 -4 -4 -4 -4 -4 -3 -3 -3 -2 -2 -------- Run | Yrd Mat Sub Rec Fac Was Fac Upp Upp Zhi Pro Fac Was Fac Ext Cet Arc Hub Res Arm Lab Res Qua Total Allies 67 | . . . . 3 . . . . . . . 19 2 11 2 . 1 . 24 . 5 . Largest Group 19 | . . . . 3 . . . . . . . 19 11 6 2 . 1 . 14 8 4 . Highest-Rated Group 684 | . . . . 87 . . . . . . . 684 441 251 90 . 48 . 580 435 256 . Highest-Rated Ally 82 | . . . . 29 . . . . . . . 50 58 47 47 . 48 . 68 68 82 . Total Orders 2 | . . . . . . . . . . . . . . . . . . . . 2 . . STAY 1 | . . . . . . . . . . . . . . . . . . . . 1 . . FOLLOW 1 | . . . . . . . . . . . . . . . . . . . . 1 . . Ally Attacks 503 | . . . . 13 . . . . . . . 106 73 77 10 . 4 . 197 13 10 . Total Damage 13499 | . . . . 188 . . . . . . . 4989 1370 2026 215 . 133 . 3371 915 292 . Kills 51 | . . . . 4 . . . . . . . 7 11 5 1 . . . 19 4 . . Allies Corrupted 3 | . . . . 1 . . . . . . . . 1 . . . . . . . 1 . Allies Melted 1 | . . . . . . . . . . . . . . . 1 . . . . . . . Intel | -11 -10 -10 -7 -5 -5 -5 -5 -5 -5 -4 -4 -4 -4 -4 -4 -4 -4 -3 -3 -3 -2 -2 ------- Run | Yrd Mat Sub Rec Fac Was Fac Upp Upp Zhi Pro Fac Was Fac Ext Cet Arc Hub Res Arm Lab Res Qua Robot Analysis Total 14 | . 2 . . 3 . 2 . . 4 . . . . . . . 2 . 1 . . . Derelict Logs Recovered 6 | . . 1 . . . . 1 3 . 1 . . . . . . . . . . . . Drone Launches . | . . . . . . . . . . . . . . . . . . . . . . . Drone Recoveries . | . . . . . . . . . . . . . . . . . . . . . . . Decoded 0b10 Intel 16 | . . . . . . . . . . . 2 . 10 4 . . . . . . . . Traps 11 | . . . . . . . . . . . 2 . 6 3 . . . . . . . . Emergency Access 5 | . . . . . . . . . . . . . 4 1 . . . . . . . . Exploration | -11 -10 -10 -7 -5 -5 -5 -5 -5 -5 -4 -4 -4 -4 -4 -4 -4 -4 -3 -3 -3 -2 -2 ------------- Run | Yrd Mat Sub Rec Fac Was Fac Upp Upp Zhi Pro Fac Was Fac Ext Cet Arc Hub Res Arm Lab Res Qua Turns Passed 19552 | 47 957 1286 816 3423 185 679 902 832 273 781 277 884 797 712 532 694 1331 1084 1618 283 727 432 Spaces Moved 11558 | 36 569 892 595 1763 140 358 445 360 161 366 102 341 554 479 251 89 600 563 1255 331 695 613 Core 15 | 4 . 1 . . . . . . . . . . . . . . . . . . 7 3 Treads 834 | . . . 187 209 . . . 102 . . . . . . . . . 97 239 . . . Legs 5270 | 32 569 891 179 394 . 23 445 258 161 366 102 339 27 479 251 89 344 269 52 . . . Wheels 991 | . . . 229 309 . . . . . . . . . . . . 256 197 . . . . Hover 1083 | . . . . 270 . . . . . . . . 167 . . . . . 543 . 103 . Flight 3365 | . . . . 581 140 335 . . . . . 2 360 . . . . . 421 331 585 610 Fastest Speed 28 | 50 120 100 95 83 99 99 147 164 164 164 193 77 79 87 171 171 107 78 44 44 28 28 Average Speed 118 | 112 120 119 107 139 127 154 191 188 164 191 193 132 88 94 171 171 143 131 83 44 51 32 Slowest Speed 950 | 120 120 120 160 201 144 231 196 196 164 193 193 193 133 211 171 171 171 175 175 44 900 950 Overloaded Moves . | . . . . . . . . . . . . . . . . . . . . . . . Propulsion Burnouts . | . . . . . . . . . . . . . . . . . . . . . . . Robots Hopped 26 | . . . . 5 . . . . . . . . 9 . . . . . 11 . 1 . Cave-ins Triggered . | . . . . . . . . . . . . . . . . . . . . . . . Teleports 2 | . . . . . . . . . . . . . . . . . . . . . 1 1 Exploration Rate (%) 57 | 3 91 43 98 50 76 11 68 64 63 58 6 90 15 74 81 83 77 24 63 100 17 61 Regions Visited 22 Branch Regions 13 Pre-discovered Areas 10 | . 2 1 2 . . 1 . . 3 1 . . . . . . . . . . . . Known Exits Taken 14 | . . . . . . 1 1 1 1 1 . . 1 1 1 1 1 1 1 1 1 . Unknown Exits Taken 4 | 1 1 1 1 . . . . . . . . . . . . . . . . . . . Scrap Searched 9 | . . 2 . . . . 4 3 . . . . . . . . . . . . . . Spaces Dug 56 | . 2 . . 3 . 4 7 . . . . . 6 . . . 3 17 11 1 . 2 Terrain Destroyed 1324 | . 6 . 15 292 . 9 15 12 . 10 3 4 45 60 20 13 417 72 164 5 64 98 Melee . | . . . . . . . . . . . . . . . . . . . . . . . Projectile 528 | . 2 . . 15 . 9 15 12 . 10 3 4 45 45 4 13 100 49 141 5 40 16 AOE 796 | . 4 . 15 277 . . . . . . . . . 15 16 . 317 23 23 . 24 82 Terrain Rammed . | . . . . . . . . . . . . . . . . . . . . . . . Walls Destroyed . | . . . . . . . . . . . . . . . . . . . . . . . Machines Disabled . | . . . . . . . . . . . . . . . . . . . . . . . Actions | -11 -10 -10 -7 -5 -5 -5 -5 -5 -5 -4 -4 -4 -4 -4 -4 -4 -4 -3 -3 -3 -2 -2 --------- Run | Yrd Mat Sub Rec Fac Was Fac Upp Upp Zhi Pro Fac Was Fac Ext Cet Arc Hub Res Arm Lab Res Qua Total 15708 | 40 718 1005 702 2373 143 456 480 497 170 412 179 744 729 628 307 614 882 792 1633 445 990 769 Wait 2353 | . 46 34 48 262 . 50 22 115 2 8 64 371 52 31 16 512 148 89 194 77 147 65 Move 11489 | 35 568 891 594 1753 139 357 444 359 160 365 102 340 537 478 250 88 600 562 1232 330 692 613 Hop 24 | . . . . 5 . . . . . . . . 7 . . . . . 11 . 1 . Pick Up 61 | . 2 1 4 7 . . . 1 1 . 1 1 2 . . . . . 5 5 21 10 Fast Attach 114 | 5 6 7 2 16 4 7 2 . 4 . 1 3 2 3 . . 8 8 4 8 16 8 Attach 40 | . . . 2 7 . 2 . . . . 3 3 1 . . . 2 3 7 1 5 4 Detach 25 | . 1 1 . 8 . . 1 . . . 1 . 2 . . . 3 3 2 . 3 . Swap 28 | . 1 1 . 2 . . . . . . . . 2 2 . . . 4 7 . 6 3 Drop 132 | . 5 8 4 14 . 3 1 1 3 . 2 . 1 3 . . 7 8 6 10 34 22 Fire 925 | . 74 52 32 203 . 18 10 12 . 33 3 15 59 51 27 8 88 56 87 11 42 44 Melee . | . . . . . . . . . . . . . . . . . . . . . . . Ram 1 | . . . . . . . . . . . . . 1 . . . . . . . . . Kick . | . . . . . . . . . . . . . . . . . . . . . . . Crush 3 | . . . . 3 . . . . . . . . . . . . . . . . . . Escape Stasis . | . . . . . . . . . . . . . . . . . . . . . . . Rewire 36 | . . . . . . . . . . . . . . 7 . . . . 29 . . . Trap . | . . . . . . . . . . . . . . . . . . . . . . . Miscellaneous 477 | . 15 10 16 93 . 19 . 9 . 6 2 11 63 53 14 6 26 59 49 3 23 . Route ------- -11/Scrapyard -10/Materials (discovered 5 exits: [*Mat x3] / *Min / *Sub) -10/Subcaves -7/Recycling -5/Factory (discovered 6 exits: *Fac x4 / *Upp x2) -5/Waste -5/Factory (discovered 2 exits: *Fac / *Upp) -5/Upper Caves -5/Upper Caves (discovered 2 exits: *Fac / *Zhi) -5/Zhirov -4/Proximity Caves -4/Factory -4/Waste -4/Factory (discovered 5 exits: *Res / Upp x2 / *Ext x2) -4/Extension (discovered 3 exits: *Res x2 / *Cet) -4/Cetus (discovered 2 exits: *Res / *Arc) -4/Archives (discovered 3 exits: *Res / *Hub x2) -4/Hub_04(d) (discovered 4 exits: *Res x4) -3/Research (discovered 6 exits: Res x3 / *Arm / Tes x2) -3/Armory (discovered 3 exits: *Res x2 / *Lab) -3/Lab -2/Research -2/Quarantine (discovered 1 exit: Acc) History --------- Turn | Location | Event 1 | -11/Scrapyard | Upgraded with Propulsion slot (x1) 1 | -11/Scrapyard | Upgraded with Utility slot (x1) 1 | -11/Scrapyard | Upgraded with Weapon slot (x1) 2 | -11/Scrapyard | Discovered new exit (range 16) 48 | -11/Scrapyard | Entered Materials 95 | -10/Materials | Discovered new exit (range 8) 306 | -10/Materials | Build established: Hacker-Mutant 328 | -10/Materials | Discovered new exit (range 8) 435 | -10/Materials | Identified exit to Mines 516 | -10/Materials | Reached level 2 617 | -10/Materials | Discovered new exit (range 8) 737 | -10/Materials | Discovered new exit (range 9) 1005 | -10/Materials | Entered Subcaves 1007 | -10/Subcaves | Reached level 3 1018 | -10/Subcaves | Upgraded with Utility slot (x1) 1118 | -10/Subcaves | Learned location of Recycling (-7) 1180 | -10/Subcaves | Shifting Twisted Machinery released Sub. Machine Gun 1183 | -10/Subcaves | Shifting Twisted Machinery released Sub. Machine Gun 1194 | -10/Subcaves | Ambushed by swarm of Subdwellers 1275 | -10/Subcaves | Visited Clippyterm 1279 | -10/Subcaves | Learned Research machine intel 1454 | -10/Subcaves | Shifting Twisted Machinery released Sub. Monowheel 1461 | -10/Subcaves | Shifting Twisted Machinery released Shrapnel Trap 1578 | -10/Subcaves | Discovered new exit (range 13) 2291 | -10/Subcaves | Entered Recycling 2293 | -7/Recycling | Reached level 4 2293 | -7/Recycling | Reached level 5 2293 | -7/Recycling | Reached level 6 2293 | -7/Recycling | Reached level 7 2294 | -7/Recycling | Upgraded with Power slot (x1) 2294 | -7/Recycling | Upgraded with Propulsion slot (x1) 2294 | -7/Recycling | Upgraded with Utility slot (x1) 2294 | -7/Recycling | Upgraded with Weapon slot (x1) 2294 | -7/Recycling | Found Scrap Engine 2575 | -7/Recycling | Reached level 8 2575 | -7/Recycling | Upgraded with Utility slot (x1) 2757 | -7/Recycling | Discovered new exit (range 7) 2862 | -7/Recycling | Build established: Hacker-Tank 3027 | -7/Recycling | Reached level 9 3107 | -7/Recycling | Entered Factory 3109 | -5/Factory | Reached level 10 3109 | -5/Factory | Reached level 11 3109 | -5/Factory | Reached level 12 3109 | -5/Factory | Reached level 13 3109 | -5/Factory | Reached level 14 3109 | -5/Factory | Reached level 15 3109 | -5/Factory | Upgraded with Utility slot (x2) 3236 | -5/Factory | Identified exit to Upper Caves 3343 | -5/Factory | Assembled infested ambush trap array 3394 | -5/Factory | Destroyed 9 combat bots 3398 | -5/Factory | Core integrity fell below 50% 3406 | -5/Factory | Core integrity fell below 20% 3413 | -5/Factory | Reached level 16 3417 | -5/Factory | Upgraded with Weapon slot (x1) 3846 | -5/Factory | Identified exit to Factory 3859 | -5/Factory | Reached level 17 3877 | -5/Factory | Build established: Hacker-Gunner 4216 | -5/Factory | Reached level 18 4218 | -5/Factory | Upgraded with Utility slot (x1) 4685 | -5/Factory | Repaired Hardlight Generator 4764 | -5/Factory | Reached level 19 4801 | -5/Factory | Build established: Hacker-Construct 4819 | -5/Factory | Found Prototype Launcher 4819 | -5/Factory | Identified Rocket Array 5071 | -5/Factory | Repaired Imp. System Restoration Module 5539 | -5/Factory | Reached level 20 5542 | -5/Factory | Upgraded with Utility slot (x1) 5901 | -5/Factory | Fabricated Adv. Shield Generator (x2) 6088 | -5/Factory | Reached level 21 6090 | -5/Factory | Upgraded with Propulsion slot (x1) 6107 | -5/Factory | First assault squad dispatched 6530 | -5/Factory | Sucked down chute 6530 | -5/Factory | Entered Waste 6555 | -5/Waste | Spotted C-40 Crusher 6589 | -5/Waste | Spotted C-40 Crusher 6589 | -5/Waste | Spotted C-40 Crusher 6615 | -5/Waste | Spotted C-40 Crusher 6615 | -5/Waste | Spotted C-40 Crusher 6632 | -5/Waste | Spotted C-40 Crusher 6652 | -5/Waste | Discovered new exit (range 17) 6676 | -5/Waste | Crushed by Compactor (0 parts destroyed, 2 dropped) 6680 | -5/Waste | Crushed by Compactor (1 part destroyed) 6683 | -5/Waste | Crushed by Compactor (1 part destroyed, 1 dropped) 6688 | -5/Waste | Crushed by Compactor (0 parts destroyed, 1 dropped) 6715 | -5/Waste | Entered Factory 6770 | -5/Factory | Repaired Imp. Cooling System 6782 | -5/Factory | Discovered exit to Factory (range 17) 6998 | -5/Factory | Discovered exit to Upper Caves (range 16) 7394 | -5/Factory | Entered Upper Caves 8078 | -5/Upper Caves | Reached level 22 8080 | -5/Upper Caves | Upgraded with Power slot (x1) 8080 | -5/Upper Caves | Upgraded with Propulsion slot (x1) 8225 | -5/Upper Caves | Discovered new exit (range 19) 8259 | -5/Upper Caves | Identified exit to Upper Caves 8272 | -5/Upper Caves | Ambushed by wild Derelicts 8296 | -5/Upper Caves | Entered another Upper Caves area 8296 | -5/Upper Caves | Discovered exit to Factory (range 15) 8325 | -5/Upper Caves | Destroyed 8 combat bots 8326 | -5/Upper Caves | Attracted the attention of an 0b10 checkpoint 8449 | -5/Upper Caves | Learned location of 1 exit from Factory 8613 | -5/Upper Caves | Spotted B-75 Beast 8621 | -5/Upper Caves | Destroyed B-75 Beast 8727 | -5/Upper Caves | Learned 4 Factory zone layouts 8953 | -5/Upper Caves | Discovered new exit (range 9) 8956 | -5/Upper Caves | Encountered a Warlord checkpoint 8965 | -5/Upper Caves | Identified exit to Zhirov 9128 | -5/Upper Caves | Entered Zhirov 9130 | -5/Zhirov | Discovered new exit (range 3) 9160 | -5/Zhirov | Met Zhirov 9196 | -5/Zhirov | Learned location of Testing (-3) 9196 | -5/Zhirov | Learned location of Command (-1) 9224 | -5/Zhirov | Zhirov requested help retrieving the SGEMP Prototype 9256 | -5/Zhirov | Found Alien Artifact 9256 | -5/Zhirov | Identified Integrated Reactor 9256 | -5/Zhirov | Installed Integrated Reactor, increased core energy generation (+10) 9282 | -5/Zhirov | Found Alien Artifact 9400 | -5/Zhirov | Identified exit to Proximity Caves 9401 | -5/Zhirov | Entered Proximity Caves 9403 | -4/Proximity Caves | Reached level 23 9404 | -4/Proximity Caves | Spotter reported a threat 9406 | -4/Proximity Caves | Spotter reported a threat 9511 | -4/Proximity Caves | Spotted B-86 Titan 9533 | -4/Proximity Caves | Destroyed B-86 Titan 10159 | -4/Proximity Caves | Discovered exit to Factory (range 10) 10182 | -4/Proximity Caves | Entered Factory 10183 | -4/Factory | Identified exit to Research 10184 | -4/Factory | Reached level 24 10185 | -4/Factory | Upgraded with Propulsion slot (x1) 10351 | -4/Factory | Repaired Adv. System Restoration Module 10432 | -4/Factory | Search patrols dispatched 10459 | -4/Factory | Sucked down chute 10459 | -4/Factory | Entered Waste 10536 | -4/Waste | Spotted C-40 Crusher 10550 | -4/Waste | Spotted C-40 Crusher 10555 | -4/Waste | Spotted C-40 Crusher 10568 | -4/Waste | Crushed by Compactor (1 part destroyed) 10585 | -4/Waste | Crushed by Compactor (0 parts destroyed, 1 dropped) 10589 | -4/Waste | Crushed by Compactor (0 parts destroyed, 1 dropped) 10596 | -4/Waste | Crushed by Compactor (0 parts destroyed, 1 dropped) 10597 | -4/Waste | Crushed by Compactor (0 parts destroyed, 1 dropped) 10641 | -4/Waste | Spotted C-40 Crusher 10650 | -4/Waste | Spotted C-40 Crusher 10651 | -4/Waste | Spotted C-40 Crusher 10663 | -4/Waste | Warlord forces began an assault 10664 | -4/Waste | Core integrity fell below 50% 10667 | -4/Waste | Allies destroyed C-40 Crusher 10675 | -4/Waste | Destroyed C-40 Crusher 10683 | -4/Waste | Crushed by Compactor (0 parts destroyed, 1 dropped) 10686 | -4/Waste | Allies destroyed C-40 Crusher 10687 | -4/Waste | Destroyed C-40 Crusher 10693 | -4/Waste | Allies destroyed C-40 Crusher 10698 | -4/Waste | Allies destroyed C-40 Crusher 10719 | -4/Waste | Lost 8 allies 11008 | -4/Waste | Discovered new exit (range 13) 11342 | -4/Waste | Identified exit to Factory 11343 | -4/Waste | Entered Factory 11343 | -4/Factory | Accompanied by 11 allies 11535 | -4/Factory | Reached level 25 11544 | -4/Factory | Upgraded with Weapon slot (x1) 11546 | -4/Factory | Identified exit to Upper Caves 11546 | -4/Factory | Identified exit to Extension 11598 | -4/Factory | Local machine network offline 11656 | -4/Factory | Lost 7 allies 11731 | -4/Factory | Discovered exit to Research (range 17) 11893 | -4/Factory | First assault squad dispatched 11990 | -4/Factory | Reached level 26 12014 | -4/Factory | Destroyed 7 combat bots 12140 | -4/Factory | Entered Extension 12149 | -4/Extension | Destroyed 7 combat bots 12175 | -4/Extension | Rescued a captive Derelict 12184 | -4/Extension | Energy Cycler disabled 12184 | -4/Extension | Rescued a captive Derelict 12184 | -4/Extension | Rescued a captive Derelict 12185 | -4/Extension | Rescued a captive Derelict 12185 | -4/Extension | Rescued a captive Derelict 12185 | -4/Extension | Rescued a captive Derelict 12185 | -4/Extension | Rescued a captive Derelict 12185 | -4/Extension | Rescued a captive Derelict 12186 | -4/Extension | Rescued a captive Derelict 12188 | -4/Extension | Rescued a captive Derelict 12189 | -4/Extension | Rescued a captive Derelict 12191 | -4/Extension | Rescued a captive Derelict 12195 | -4/Extension | Rescued a captive Derelict 12388 | -4/Extension | Spotted B-86 Titan 12396 | -4/Extension | Spotted B-86 Titan 12405 | -4/Extension | Lost 5 allies 12414 | -4/Extension | Destroyed B-86 Titan 12457 | -4/Extension | Destroyed B-86 Titan 12484 | -4/Extension | Discovered exit to Research (range 15) 12500 | -4/Extension | Destroyed 14 combat bots 12546 | -4/Extension | Extracted ID and sensor layout for unrecognized location from A7's data core 12640 | -4/Extension | First assault squad dispatched 12722 | -4/Extension | Reached level 27 12776 | -4/Extension | Discovered exit to Research (range 10) 12777 | -4/Extension | Discovered new exit (range 6) 12781 | -4/Extension | Destroyed 8 combat bots 12792 | -4/Extension | Identified exit to Cetus 12802 | -4/Extension | Disrupted transfer network 12836 | -4/Extension | Lost 3 allies 12852 | -4/Extension | Entered Cetus 12852 | -4/Cetus | Accompanied by 1 ally 12872 | -4/Cetus | Spotted Cetus Guard 12872 | -4/Cetus | Spotted Cetus Guard 12874 | -4/Cetus | Allies destroyed Cetus Guard 12875 | -4/Cetus | Spotted Cetus Guard 12876 | -4/Cetus | Spotted Cetus Guard 12879 | -4/Cetus | Destroyed Cetus Guard 12882 | -4/Cetus | Destroyed Cetus Guard 12885 | -4/Cetus | Destroyed Cetus Guard 13067 | -4/Cetus | Cetus Manufacturing Module disabled 13154 | -4/Cetus | Discovered new exit (range 18) 13181 | -4/Cetus | Identified exit to Archives 13216 | -4/Cetus | Spotted Cetus Guard 13216 | -4/Cetus | Spotted Cetus Guard 13218 | -4/Cetus | Destroyed Cetus Guard 13219 | -4/Cetus | Spotted Cetus Guard 13221 | -4/Cetus | Destroyed Cetus Guard 13227 | -4/Cetus | Destroyed Cetus Guard 13227 | -4/Cetus | Spotted Cetus Guard 13233 | -4/Cetus | Destroyed Cetus Guard 13252 | -4/Cetus | Discovered exit to Research (range 17) 13264 | -4/Cetus | Met Revision 17 13384 | -4/Cetus | Entered Archives 13471 | -4/Archives | Unable to access archive contents 13486 | -4/Archives | Discovered new exit (range 18) 13509 | -4/Archives | Discovered new exit (range 17) 13519 | -4/Archives | Discovered exit to Research (range 18) 13558 | -4/Archives | Identified exit to Hub_04(d) 14078 | -4/Archives | Entered Hub_04(d) 14179 | -4/Hub_04(d) | Discovered exit to Research (range 18) 14296 | -4/Hub_04(d) | Destroyed 7 combat bots 14360 | -4/Hub_04(d) | First assault squad dispatched 14549 | -4/Hub_04(d) | Found Prototype Hackware 14549 | -4/Hub_04(d) | Identified Exp. System Shield 14859 | -4/Hub_04(d) | Build established: Wizard-Construct 14875 | -4/Hub_04(d) | Destroyed 8 combat bots 14902 | -4/Hub_04(d) | Reached level 28 15310 | -4/Hub_04(d) | Destroyed 7 combat bots 15358 | -4/Hub_04(d) | Network Hub disabled 15377 | -4/Hub_04(d) | Spotted Lightning 15377 | -4/Hub_04(d) | Spotted Lightning 15378 | -4/Hub_04(d) | Network Hub disabled 15385 | -4/Hub_04(d) | Spotted Lightning 15395 | -4/Hub_04(d) | Spotted Lightning 15398 | -4/Hub_04(d) | Spotted Lightning 15402 | -4/Hub_04(d) | Spotted Lightning 15403 | -4/Hub_04(d) | System corruption reached 10% 15409 | -4/Hub_04(d) | Core integrity fell below 20% 15409 | -4/Hub_04(d) | Entered Research 15410 | -3/Research | Loaded intel: 89 machine locations 15410 | -3/Research | Core integrity fell below 50% 15410 | -3/Research | Core integrity fell below 20% 15581 | -3/Research | Identified exit to Armory 15581 | -3/Research | Identified exit to Testing 15581 | -3/Research | Identified exit to Research 15768 | -3/Research | Identified Transdimensional Reconstructor 15831 | -3/Research | Found Prototype Processor 15831 | -3/Research | Identified Exp. Target Analyzer 15834 | -3/Research | Found Exp. Target Analyzer 15891 | -3/Research | Reached level 29 15901 | -3/Research | Found Prototype Device 15901 | -3/Research | Identified Exp. ECM Suite 15909 | -3/Research | Found Prototype Processor 15909 | -3/Research | Identified Spectral Analyzer 16272 | -3/Research | Fabricated Biometal Heavy Treads (x1) 16493 | -3/Research | Entered Armory 16851 | -3/Armory | Destroyed 10 combat bots 17186 | -3/Armory | Fabricated Adv. Powered Armor (x1) 17458 | -3/Armory | Fabricated S-43 Plague? 17493 | -3/Armory | Fabricated Enh. Nova Cannon? 17526 | -3/Armory | Reached level 30 17527 | -3/Armory | Upgraded with Utility slot (x1) 17544 | -3/Armory | Fabricated Quantum Reactor? 17560 | -3/Armory | Fabricated S-43 Plague (x4) 17695 | -3/Armory | Discovered exit to Research (range 23) 17713 | -3/Armory | Fabricated T-07 Excavator? 17793 | -3/Armory | First assault squad dispatched 17793 | -3/Armory | Destroyed 7 combat bots 17800 | -3/Armory | Lost 4 allies 17813 | -3/Armory | Assisted by bots powering up and referring to "LRC-V3" 17925 | -3/Armory | Discovered new exit (range 16) 17954 | -3/Armory | Discovered exit to Research (range 24) 17962 | -3/Armory | Found Prototype Hackware 17972 | -3/Armory | Identified Exp. Hacking Suite 18010 | -3/Armory | Lost 8 allies 18099 | -3/Armory | Identified exit to Lab 18111 | -3/Armory | Entered Lab 18111 | -3/Lab | Accompanied by 8 allies 18111 | -3/Lab | Discovered exit to Research (range 9) 18113 | -3/Lab | Reached level 31 18116 | -3/Lab | Hidden lab's door opened automatically 18116 | -3/Lab | Sensor layout match revealed 18117 | -3/Lab | Gained access to the hidden lab's interior 18117 | -3/Lab | Unable to decrypt terminal 18156 | -3/Lab | Unable to decrypt terminal 18177 | -3/Lab | Unable to decrypt terminal 18202 | -3/Lab | Found Prototype Device 18202 | -3/Lab | Identified AEGIS Remote Shield 18205 | -3/Lab | Found Prototype Hackware 18205 | -3/Lab | Identified Deep Network Scanner 18228 | -3/Lab | Found Alien Artifact 18228 | -3/Lab | Identified Core Regenerator 18228 | -3/Lab | Used Core Regenerator, restored core integrity (+100) 18231 | -3/Lab | Found Alien Artifact 18231 | -3/Lab | Identified Integrated Dissipator 18231 | -3/Lab | Installed Integrated Dissipator, increased core heat dissipation (+20) 18235 | -3/Lab | Found Transdimensional Reconstructor 18238 | -3/Lab | Found Alien Artifact 18238 | -3/Lab | Identified Core Reset Matrix 18238 | -3/Lab | Used Core Reset Matrix 18241 | -3/Lab | Discovered exit to Research (range 10) 18241 | -3/Lab | Detected by scanners 18247 | -3/Lab | Confronted by A5 18257 | -3/Lab | Allies destroyed A5 18333 | -3/Lab | Unable to decrypt terminal 18334 | -3/Lab | Found LC Capacitor 18352 | -3/Lab | Unable to decrypt terminal 18361 | -3/Lab | Unable to decrypt terminal 18370 | -3/Lab | Unable to decrypt terminal 18394 | -3/Lab | Entered Research 18394 | -2/Research | Accompanied by 1 ally 18528 | -2/Research | Reached level 32 18532 | -2/Research | Upgraded with Utility slot (x1) 18600 | -2/Research | Fabricated Quantum Reactor (x2) 18648 | -2/Research | Local machine network offline 18706 | -2/Research | Warped through subspace 18952 | -2/Research | Discovered new exit (range 8) 18957 | -2/Research | Identified exit to Quarantine 18985 | -2/Research | Found Prototype Processor 18997 | -2/Research | Intercept squad dispatched 19020 | -2/Research | Identified Exp. Melee Analysis Suite 19021 | -2/Research | Spotted Tracker 19021 | -2/Research | Spotted Tracker 19028 | -2/Research | Destroyed Tracker 19034 | -2/Research | Destroyed Tracker 19063 | -2/Research | Found Prototype Energy Gun 19065 | -2/Research | Identified Immobilizer 19100 | -2/Research | Spotted Combat Programmer 19102 | -2/Research | Spotted Combat Programmer 19121 | -2/Research | Entered Quarantine 19122 | -2/Quarantine | Detected hypermatrix surge 19122 | -2/Quarantine | Sensed 16 artifacts in vicinity 19140 | -2/Quarantine | Found Matter Drive 19217 | -2/Quarantine | Scanned by Researcher 19276 | -2/Quarantine | Met incapacitated Sigix Warrior 19276 | -2/Quarantine | Lockdown squad dispatched 19283 | -2/Quarantine | Acquired the access code to the Sigix quarantine chamber 19283 | -2/Quarantine | Unlocked Sigix quarantine chamber 19317 | -2/Quarantine | Identified exit to Access 19331 | -2/Quarantine | Spotted Lightning 19334 | -2/Quarantine | Spotted Lightning 19335 | -2/Quarantine | Spotted Lightning 19342 | -2/Quarantine | Destroyed Lightning 19352 | -2/Quarantine | Cryocooling Duct disabled 19355 | -2/Quarantine | Destroyed Lightning 19367 | -2/Quarantine | Ambient heat levels rising (+20) 19367 | -2/Quarantine | Non-combat units ordered to evacuate 19407 | -2/Quarantine | Cryocooling Duct disabled 19422 | -2/Quarantine | Ambient heat levels rising (+20) 19422 | -2/Quarantine | Combat units ordered to evacuate 19422 | -2/Quarantine | Reached level 33 19453 | -2/Quarantine | Spotted Alpha 7 19455 | -2/Quarantine | Intercept squad dispatched 19460 | -2/Quarantine | Found Sigix Terminator 19462 | -2/Quarantine | Spotted Tracker 19463 | -2/Quarantine | Spotted Tracker 19474 | -2/Quarantine | Core integrity fell below 50% 19477 | -2/Quarantine | Spotted Combat Programmer 19478 | -2/Quarantine | Destroyed Alpha 7 19479 | -2/Quarantine | Spotted Combat Programmer 19482 | -2/Quarantine | Warped through subspace 19496 | -2/Quarantine | Destroyed Tracker 19518 | -2/Quarantine | Core integrity fell below 20% 19522 | -2/Quarantine | Quarantine Guard activated 19522 | -2/Quarantine | Destroyed Combat Programmer 19545 | -2/Quarantine | Spotted Quarantine Guard 19550 | -2/Quarantine | Spotted Quarantine Guard 19553 | -2/Quarantine | Fired Sigix Terminator 19553 | -2/Quarantine | Destroyed Quarantine Guard 19553 | -2/Quarantine | Destroyed Quarantine Guard 19553 | -2/Quarantine | Destroyed Combat Programmer 19553 | -2/Quarantine | Destroyed Quarantine Guard 19553 | -2/Quarantine | Destroyed Quarantine Guard 19553 | -2/Quarantine | Destroyed Quarantine Guard 19553 | -2/Quarantine | Destroyed self with Sigix Terminator Last Messages --------------- 19536_ Drone heat spikes uncontrollably. 19537_ System corrupted: Component data lost. 19538_ System corrupted: Hpw. Thermic Linear Construct/G failed to cycle. 19538_ Drone destroyed. 19550_ Penetrated by EMDS Slug. 19551_ Reaction Chamber disabled. 19551_ Knocked back. 19551_ Discarded Hpw. Thermic Linear Construct/G. 19551_ Arm. Scrap Engine damaged due to network destabilization (-10). 19551_ Discarded Hyp. KE Hardcell Construct/G. 19551_ Arm. Scrap Engine damaged due to network destabilization (-10). 19552_ Scrap Engine modifies Flying QT-Diametric Exoskeleton: Penalty +38, Heat +2, Max Integrity -109 Renamed Flying QT Exoskeleton. 19553_ Sigix Terminator expended. 19553_ Quarantine Guard destroyed. 19553_ Combat Programmer fries systems beyond repair. 19553_ Combat Programmer destroyed. 19553_ Particle Synthesizer disabled. [Achievement: Back For More] Map ----- +----------------------------------------------------+ | ##???#?###" [## #???????????????????????????? | | ???##?#?######### #???????????????????????????? | | #???#??????#???## +???????????????????????????? | | #####?####??##??# #???????????????????????????? | | ######?#???#???## #???????????????????????????? | | #########????#?## #??!????????????????????????? | | #####??#?###????## ###? ? ???????????????????????? | | ####?###?????#?#??+#?" " T??????????????????????? | | ###?#??? ?? ?????????# ?????????????????????? | | ##?#?? ?? ?????????; ;???????????????????? | | ####?#?"""?"?????? ; ;; ????????????????? | | #####??"?"?"??""" ; ;;;;; ??????????????? | | ###????"?"""??""" ; ???????????? | | #?#?##?? ????? ????????????? | | #??#?#?"?? ???"" ; ?????????????? | | ??###? ??? ?"""" ; ??????????????? | | ?###????""? ?""" ; ;;;;;;;;;##????????????? | | #?#### ? ???s ; ; ; #???????????? | | ###?##?##?????###;;;; ; #???????????? | | ###? ? ???? ?? #;;;; ; ; #???????????? | | #?#???"?" "????+ ; ?????????????? | | #?##? ?""???????#;;;;; ; ; ???????????????? | | ####????????????# ; ; ; ?????????????????? | | #?##? ?? ? ? ??# ; ; ; ???????????????????? | | ###?? ?? ? ? # ; ; ?????????????????????? | | #### ? ? ??????##?### !@;??????????????????????? | | ##?? !?? ????#### %##?????????????????????? | | #### ? ?? ? #?#??# #??????????????????????? | | #?##? ? ? ??? #??### #??????????????????????? | | ###? ? ? ##??## #??????????????????????? | | #### ?? ? ?#?#??# #???]??????????????????? | | ############/######### #??????????????????????? | | #??????????????????????? | | #?##???????????????????? | | ? ????????????????????? | | ?? ???????????????????? | | ######"### ! ? ??????????????????? | | # """ """ " " """?????????????????????? | | [ [ # """ """ """ """? ??????????????????? | | [ = # """ """ """ ""? ????????????????????? | | # ? ??????????????????????? | | """ # ????? ? ?? ???????????????????? | | """ """ # ? ? ? ???????????????????? | | """ """ ##########????? ?Y???# ?????????????????? | | #?#### ? ? ??? ? ???#??????????????????? | | ###/###""###### ?"" ???? ? ##?? ???????????????? | | ### ##= # ??" ???##?##????????????????????? | | # # """??? #????##???????????????????? | | " "T"" #????????#? ##????????????????????? | | """ # """"" #?""" ? ?#????#????????????????????? | +----------------------------------------------------+ Best States ------------- Heat Dissipation 129 Energy Generation 123 Energy Capacity 1643 Matter Stores 450 Matter Capacity 700 Sight Range 26 Robot Scan Range 20 Terrain Scan Range 24 Terrain Scan Density 310 Jamming Range 14 Armor Coverage 400 Resistance: KI 45 Resistance: TH 45 Resistance: EX 30 Resistance: EM 20 Resistance: I 20 Resistance: S 20 Resistance: P 20 Weapon Cycling 20 Evasion (%) 64 Targeting Accuracy 5 Target Analysis 10 Core Analysis 6 Recoil Reduction 6 Offensive Hacking 55 Defensive Hacking 43 Authchip Count 2 Item Schematics ----------------- Adv. System Restoration Module | -2/Research | Scanalyzed Adv. Cooling System | -2/Quarantine | Scanalyzed Lrn. Terrain Scanner | -2/Quarantine | Scanalyzed Biometal Heavy Treads | -2/Quarantine | Hacked Exp. Core Analyzer | -2/Quarantine | Hacked Robot Schematics ------------------ None Fabricated ------------ Adv. Shield Generator | x2 | -5/Factory Biometal Heavy Treads | x1 | -3/Research Adv. Powered Armor | x1 | -3/Armory | Preloaded S-43 Plague | x4 | -3/Armory | Authchip Enh. Nova Cannon | x1 | -3/Armory | Authchip Quantum Reactor | x2 | -3/Armory | Authchip S-43 Plague | x4 | -3/Armory | Authchip T-07 Excavator | x1 | -3/Armory | Preloaded Quantum Reactor | x2 | -2/Research | Preloaded Alien Tech Used ----------------- Integrated Reactor Core Regenerator Integrated Dissipator Core Reset Matrix LC Capacitor Transdimensional Reconstructor Sigix Terminator Achievements -------------- Back For More Challenges ------------ None RPGLIKE | -11 -10 -10 -7 -5 -5 -5 -5 -5 -5 -4 -4 -4 -4 -4 -4 -4 -4 -3 -3 -3 -2 -2 --------- Run | Yrd Mat Sub Rec Fac Was Fac Upp Upp Zhi Pro Fac Was Fac Ext Cet Arc Hub Res Arm Lab Res Qua Levels Raised 32 | . 1 1 6 12 . . 1 . . 1 1 . 2 1 . . 1 1 1 1 1 1 XP Earned 52396 | 4000 2015 1800 8276 18365 97 611 364 534 220 1934 1219 121 2289 1421 391 146 972 1688 2280 857 1520 1276 XP Spent 50455 | 3920 . 2805 7720 18735 . . 2200 90 . 1255 1700 . 2950 1265 . . 1600 . 2900 . 3315 . Upgrades 93 | 17 . 12 18 24 . . 2 1 . 4 1 . 4 5 . . 2 . 1 . 2 . Power Slot 2 | . . . 1 . . . 1 . . . . . . . . . . . . . . . Propulsion Slot 5 | 1 . . 1 1 . . 1 . . . 1 . . . . . . . . . . . Utility Slot 10 | 1 . 1 2 4 . . . . . . . . . . . . . . 1 . 1 . Weapon Slot 4 | 1 . . 1 1 . . . . . . . . 1 . . . . . . . . . Core Integrity 10 | . . 3 3 3 . . . . . . . . . . . . . . . . 1 . Heat Dissipation 8 | 2 . 5 . . . . . . . . . . . 1 . . . . . . . . Energy Generation 2 | 1 . 1 . . . . . . . . . . . . . . . . . . . . Energy Storage 3 | 1 . . . 1 . . . . . . . . . 1 . . . . . . . . Matter Storage 3 | 1 . . 1 . . . . . . . . . . 1 . . . . . . . . Mass Support 1 | 1 . . . . . . . . . . . . . . . . . . . . . . Inventory Capacity 5 | 1 . . 2 2 . . . . . . . . . . . . . . . . . . Sight Range 2 | 1 . . . . . . . . . . . . . 1 . . . . . . . . Sensor Range 10 | 1 . . 3 3 . . . . . 1 . . 1 1 . . . . . . . . Terrain Scan Density 3 | . . . 1 . . . . 1 . 1 . . . . . . . . . . . . Ranged Accuracy 5 | 1 . . . 2 . . . . . 1 . . 1 . . . . . . . . . Hack Attack % 4 | 1 . . 1 1 . . . . . . . . . . . . 1 . . . . . Hack Defense % 3 | 1 . . . 1 . . . . . . . . . . . . 1 . . . . . KI Resistance % 4 | 1 . 1 . 2 . . . . . . . . . . . . . . . . . . TH Resistance % 4 | 1 . 1 1 1 . . . . . . . . . . . . . . . . . . EX Resistance % 2 | . . . 1 1 . . . . . . . . . . . . . . . . . . KI Damage % 2 | . . . . . . . . . . 1 . . 1 . . . . . . . . . TH Damage % 1 | . . . . 1 . . . . . . . . . . . . . . . . . . Protomatter Created 7941 | . 202 24 117 1047 . 299 50 102 . 39 37 93 752 1057 221 74 1215 773 1196 61 337 245 Integrity Restored 9937 | . 283 187 346 2110 . 400 . 184 . 117 42 264 1271 1051 249 108 508 1339 961 18 499 . Core 8461 | . 224 153 215 2020 . 296 . 148 . 117 42 264 1084 767 188 80 451 1271 705 10 426 . Parts 1476 | . 59 34 131 90 . 104 . 36 . . . . 187 284 61 28 57 68 256 8 73 . Protomatter Decayed 5203 | . 103 126 . 359 . 161 . 38 . . . . 264 1093 207 36 1060 65 1227 167 297 . Game ------ Seed MagneticResetLattice Manual? 0 Play Time 04:21:02 Cumulative 242.3 hours Start 2024.03.31 @ 23:07:52 End 2024.04.01 @ 03:41:34 Sessions 3 Manual Loads 0 Difficulty Adventurer Special Mode Winter2019/RPGLIKE Game No. 50 Rogue 7 Adventurer 42 Explorer 1 Win Type - Total 14 Types 5/0/4/4/1/0/0/0/0 Lore% 59 Gallery% 72 Achievement% 71 Wizard Run 0 Options --------- Layout 0 ASCII 0 Keyboard 0 Movement Numpad Keybinds 0 Fullscreen 1 Font 18/SmallcapsGlow Map View 76x50 Zoom Use 0% Tactical HUD 1 Map Filters NONE Filters NONE Steam 1 RUN: 77f56296-57a3-4391-bdc5-f034a962ab5d